fUST/lending_fUST_20240421
["ID","MTS","AMOUNT","RATE_DAILY","PERIOD"]
[323132321,1713702639492,-500.0,0.00021917,2]
[323132323,1713702639505,-500.0,0.00021917,2]
[323132325,1713702639514,-500.0,0.00021917,2]
[323132327,1713702639524,-500.0,0.00021917,2]
[323132329,1713702639533,-721.26,0.00021917,2]
[323132331,1713702639542,-500.0,0.00021917,2]
[323132333,1713702639551,-592.6050371,0.00021917,2]
[323132335,1713702639561,-500.0,0.00021917,2]
[323132337,1713702639570,-558.97,0.00021917,2]
[323132339,1713702639582,-500.0,0.00021917,2]
[323132341,1713702639591,-500.0,0.00021917,2]
[323132343,1713702639600,-500.0,0.00021917,2]
[323132345,1713702639611,-500.0,0.00021917,2]
[323132347,1713702639622,-540.91,0.00021917,2]
[323132349,1713702639631,-500.0,0.00021917,2]
[323132351,1713702639640,-224.29887896,0.00021917,2]
[323132353,1713702639649,-500.0,0.00021917,2]
[323132355,1713702639659,-500.0,0.00021917,2]
[323132357,1713702639667,-500.0,0.00021917,2]
[323132359,1713702639676,-500.0,0.00021917,2]
[323132361,1713702639685,-873.0,0.00021917,2]
[323132363,1713702639696,-541.60503942,0.00021917,2]
[323132365,1713702639706,-500.0,0.00021917,2]
[323132367,1713702639715,-956.8,0.00021917,2]
[323132369,1713702639724,-500.0,0.00021917,2]
[323132371,1713702639733,-500.0,0.00021917,2]
[323132373,1713702639742,-500.0,0.00021917,2]
[323132375,1713702639753,-758.05,0.00021917,2]
[323132377,1713702639762,-500.0,0.00021917,2]
[323132379,1713702639771,-501.09,0.00021917,2]
[323132381,1713702639781,-510.27205363,0.00021917,2]
[323132383,1713702639790,-500.0,0.00021917,2]
[323132385,1713702639799,-278.1997163,0.00021917,2]
[323132974,1713702645938,-156.80738566,0.00021814,2]
[323132975,1713702645948,-221.8002837,0.00021917,2]
[323132976,1713702645958,-171.2943547,0.00021917,2]
[323132993,1713702670232,529.5603473,0.00010959,30]
[323132999,1713702907300,261.87,0.0002416,35]
[323133013,1713703389496,24890.0,0.00019329,2]
[323133015,1713703555475,9260.6,0.0001932,2]
[323133046,1713703832075,-241.42272,0.00020212,2]
[323133047,1713703832085,-300.0,0.00020212,2]
[323133049,1713703832096,-808.15085291,0.00020213,2]
[323133051,1713703832106,-2623.01567159,0.00020214,2]
[323133053,1713703832115,-471.58731213,0.00020215,2]
[323133055,1713703832124,-468.2653797,0.00020216,2]
[323133057,1713703832133,-469.43131527,0.00020217,2]
[323133059,1713703832142,-205.98680094,0.00020218,2]
[323133061,1713703832151,-300.0,0.00020231,2]
[323133063,1713703832160,-300.0,0.00020231,2]
[323133065,1713703832169,-2955.77473827,0.00020232,2]
[323133068,1713703832186,-28329.50639173,0.00020232,2]
[323133070,1713703832194,-1320.52313048,0.00020233,2]
[323133072,1713703832203,-3161.4058266,0.00020333,2]
[323133074,1713703832213,-926.63477986,0.00020613,2]
[323133076,1713703832222,-174.73599758,0.000207,2]
[323133078,1713703832231,-174.73599757,0.000207,2]
[323133080,1713703832240,-174.73599757,0.000207,2]
[323133082,1713703832249,-2000.0,0.00020714,2]
[323133084,1713703832258,-150.0,0.0002091,2]
[323133086,1713703832266,-163.73491513,0.00021598,2]
[323133088,1713703832275,-163.73491511,0.00021657,2]
[323133090,1713703832287,-163.56397325,0.00021697,2]
[323133092,1713703832296,-7922.27811258,0.00021697,2]
[323133094,1713703832306,-198.39421561,0.00021698,2]
[323133096,1713703832315,-254.16341144,0.00021698,2]
[323133114,1713703832469,-241.30671673,0.00021698,2]
[323133116,1713703832478,-205.02360207,0.00021698,2]
[323133118,1713703832488,-154.99603486,0.00021698,2]
[323133120,1713703832497,-203.42050511,0.00021698,2]
[323133122,1713703832506,-154.8915759,0.00021698,2]
[323133124,1713703832515,-688.27982774,0.00021698,2]
[323133126,1713703832524,-190.20010034,0.00021698,2]
[323133128,1713703832534,-442.11475483,0.00021698,2]
[323133130,1713703832544,-277.10572932,0.00021698,2]
[323133132,1713703832553,-468.64054558,0.00021698,2]
[323133134,1713703832563,-204.16197775,0.00021698,2]
[323133136,1713703832572,-539.63707301,0.00021698,2]
[323133138,1713703832581,-154.8961369,0.00021698,2]
[323133140,1713703832590,-172.03594224,0.00021698,2]
[323133142,1713703832599,-1489.75322658,0.00021698,2]
[323133144,1713703832608,-1090.08472256,0.00021698,2]
[323133146,1713703832617,-218.36926205,0.00021698,2]
[323133147,1713703832626,-247.12439728,0.00021698,2]
[323133149,1713703832636,-250.18519589,0.00021699,2]
[323133152,1713703832645,-8516.00427169,0.00021699,2]
[323133154,1713703832654,-500.0,0.00021699,2]
[323133156,1713703832664,-480.44448188,0.00021699,2]
[323133158,1713703832673,-384.55293441,0.00021699,2]
[323133160,1713703832683,-187.31739649,0.00021699,2]
[323133161,1713703832692,-93291.22291859,0.000217,2]
[323133717,1713703838263,-106708.77708141,0.000217,2]
[323133719,1713703838273,-4495.86727839,0.00021715,2]
[323133721,1713703838282,-1000.0,0.00021744,2]
[323133723,1713703838290,-153.0,0.00021778,2]
[323133725,1713703838300,-247.6033986,0.00021778,2]
[323133727,1713703838310,-203.4958838,0.00021778,2]
[323133729,1713703838319,-203.4958838,0.00021778,2]
[323133731,1713703838328,-523.26675464,0.00021813,4]
[323133733,1713703838337,-354.6718789,0.00021813,2]
[323133735,1713703838346,-193.45780411,0.00021813,2]
[323133737,1713703838356,-960.86852069,0.00021813,2]
[323133739,1713703838365,-1557.24218285,0.00021813,2]
[323133741,1713703838374,-291.4940424,0.00021813,2]
[323133743,1713703838384,-500.33619933,0.00021813,2]
[323133745,1713703838393,-602.61216035,0.00021813,2]
[323133747,1713703838402,-743.6869419,0.00021813,2]
[323133749,1713703838411,-167.47944015,0.00021813,2]
[323133751,1713703838421,-155.06222629,0.00021813,2]
[323133754,1713703838431,-307.57485926,0.00021813,2]
[323133756,1713703838440,-318.35228983,0.00021813,2]
[323133757,1713703838449,-1322.20748104,0.00021813,2]
[323133759,1713703838458,-155.11060091,0.00021813,2]
[323133761,1713703838467,-304.93752392,0.00021813,2]
[323133763,1713703838476,-155.99590109,0.00021813,2]
[323133765,1713703838486,-154.98448297,0.00021813,2]
[323133767,1713703838495,-1123.2287094,0.00021813,2]
[323133769,1713703838504,-207.47804617,0.00021813,2]
[323133771,1713703838513,-200.0,0.00021813,2]
[323133774,1713703838522,-211.41674407,0.00021814,2]
[323133775,1713703838532,-155.0025218,0.00021814,2]
[323133777,1713703838541,-309.6903097,0.00021815,2]
[323133779,1713703838551,-15951.28633258,0.00021815,2]
[323133781,1713703838560,-31276.87544836,0.00021815,2]
[323135728,1713704137039,-926.63477986,0.00020724,2]
[323135729,1713704137076,-413.26180723,0.00020899,2]
[323135730,1713704138237,189.12046412,0.00020898,2]
[323135731,1713704138846,154.86062544,0.00020898,2]
[323135732,1713704139116,474.60169326,0.00020898,2]
[323135733,1713704160763,250.0,0.00020641,2]
[323135734,1713704178376,218.47116221,0.00019715,2]
[323135735,1713704188900,165.938513,0.00020069,2]
[323135736,1713704208675,692.47153713,0.00019715,2]
[323135737,1713704212450,154.86062544,0.00019715,2]
[323135738,1713704214712,19.88220522,0.00019715,2]
[323135739,1713704214744,626.14682227,0.00019715,2]
[323135740,1713704218567,4373.85317773,0.00019715,2]
[323135741,1713704218599,5000.0,0.00019715,2]
[323135742,1713704218624,6710.78056047,0.00019715,2]
[323135743,1713704220474,154.07879782,0.0002,2]
[323135744,1713704224672,185.16589348,0.00019715,2]
[323135745,1713704232460,157.96833598,0.00019715,2]
[323135746,1713704232566,3283.5211025,0.00019715,2]
[323135747,1713704232725,538.35752291,0.00019715,2]
[323135748,1713704236144,156.9712442,0.00019714,2]
[323135749,1713704252720,538.35752291,0.00019714,2]
[323135750,1713704272724,280.48426944,0.00019714,2]
[323135751,1713704290737,280.48426944,0.00019714,2]
[323135754,1713704310743,280.48426944,0.00019714,2]
[323135755,1713704332731,280.48426944,0.00019714,2]
[323135756,1713704348739,280.48426944,0.00019714,2]
[323135757,1713704364739,280.48426944,0.00019714,2]
[323135761,1713704380763,280.48426944,0.00019714,2]
[323135762,1713704398739,280.48426944,0.00019714,2]
[323135763,1713704416770,280.48426944,0.00019714,2]
[323135765,1713704434743,280.48426944,0.00019714,2]
[323135766,1713704452752,210.1692178,0.00019714,2]
[323135767,1713704479924,150.0,0.00019715,2]
[323135768,1713704509610,488.462419,0.00019915,2]
[323135769,1713704562314,1893.4553639,0.00019878,2]
[323135770,1713704583998,14692.4867549,0.00019877,2]
[323135771,1713704666240,167.803675,0.00019611,2]
[323135772,1713704689397,1130.8535859,0.00020061,2]
[323135773,1713704723674,186.5682725,0.00019861,2]
[323135775,1713704774527,200.0,0.0002,2]
[323135776,1713704781159,150.0,0.000189,2]
[323135786,1713705023151,168.77323916,0.00025,30]
[323135787,1713705028715,244.231209,0.00019801,2]
[323135831,1713705032301,-300.0,0.00020652,2]
[323135832,1713705032310,-469.43131527,0.00020653,2]
[323135835,1713705032320,-468.2653797,0.00020653,2]
[323135836,1713705032329,-808.15085291,0.00020654,2]
[323135839,1713705032339,-157.69768027,0.00020654,2]
[323135841,1713705032348,-154.84515485,0.00020654,2]
[323135843,1713705032357,-288.1062039,0.00020655,2]
[323135844,1713705032367,-161.96145842,0.00020656,2]
[323135846,1713705032377,-153.03903881,0.00020657,2]
[323135848,1713705032386,-603.12026337,0.00020755,2]
[323135850,1713705032395,-354.6718789,0.00020755,2]
[323135852,1713705032404,-300.0,0.00020756,2]
[323135854,1713705032414,-300.0,0.00020756,2]
[323135856,1713705032423,-154.86062544,0.00020786,2]
[323135858,1713705032432,-1200.38162123,0.00020803,2]
[323135860,1713705032442,-163.73491511,0.00020892,2]
[323135863,1713705032451,-4863.7122187,0.00020915,2]
[323135865,1713705032461,-72533.62668599,0.0002099,2]
[323135867,1713705032470,-75231.84583064,0.00020991,2]
[323135869,1713705032482,-316.93594961,0.00020991,2]
[323136047,1713705038303,-454.50813488,0.0002099,2]
[323136049,1713705038313,-4451.21821975,0.00020991,2]
[323136051,1713705038322,-619.08041203,0.00020994,2]
[323136052,1713705038333,-154.84793416,0.00020994,2]
[323136053,1713705038342,-154.84515485,0.00020994,2]
[323136054,1713705038351,-154.84515485,0.00020994,2]
[323136055,1713705038359,-154.84515485,0.00020995,2]
[323136057,1713705038369,-27599.31139859,0.00020999,2]
[323136059,1713705038378,-540.25761675,0.00021,7]
[323136061,1713705038387,-7922.27811258,0.00021,2]
[323136063,1713705038396,-969.77789924,0.00021509,2]
[323136065,1713705038405,-918.14765376,0.00021513,2]
[323136067,1713705038414,-4000.0,0.00021699,2]
[323136069,1713705038423,-4000.0,0.00021699,2]
[323136071,1713705038432,-4000.0,0.00021699,2]
[323136073,1713705038441,-4000.0,0.00021699,2]
[323136075,1713705038450,-4000.0,0.00021699,2]
[323136077,1713705038459,-4000.0,0.00021699,2]
[323136079,1713705038468,-1969.18914495,0.00021699,2]
[323136081,1713705038477,-4066.0774913,0.00021705,2]
[323136083,1713705038486,-154.8915759,0.00021791,2]
[323136085,1713705038498,-470.77885512,0.00021813,2]
[323136087,1713705038507,-15951.28633258,0.00021813,2]
[323136089,1713705038516,-155.0025218,0.00021813,2]
[323136091,1713705038526,-1322.20748104,0.00021813,2]
[323136093,1713705038535,-211.41674407,0.00021813,2]
[323136096,1713705038546,-155.06222629,0.00021813,2]
[323136098,1713705038555,-1557.24218285,0.00021813,2]
[323136099,1713705038564,-743.6869419,0.00021813,2]
[323136102,1713705038574,-200.0,0.00021813,2]
[323136104,1713705038583,-167.47944015,0.00021813,2]
[323136106,1713705038593,-307.57485926,0.00021813,2]
[323136108,1713705038602,-523.26675464,0.00021813,4]
[323136110,1713705038611,-193.45780411,0.00021813,2]
[323136112,1713705038620,-291.4940424,0.00021813,2]
[323136113,1713705038630,-155.11060091,0.00021813,2]
[323136116,1713705038640,-207.47804617,0.00021813,2]
[323136117,1713705038649,-1123.2287094,0.00021813,2]
[323136120,1713705038660,-960.86852069,0.00021813,2]
[323136122,1713705038670,-304.93752392,0.00021813,2]
[323136123,1713705038679,-155.99590109,0.00021813,2]
[323136126,1713705038688,-156.72039684,0.00021813,2]
[323136127,1713705038697,-7527.00133377,0.00021813,2]
[323136130,1713705038707,-2610.68105327,0.00021814,2]
[323136132,1713705038717,-23496.74183986,0.00021815,2]
[323136134,1713705038727,-300.89684472,0.00021815,2]
[323136136,1713705038736,-1089.6608071,0.00021815,2]
[323136138,1713705038745,-329.39846217,0.00021815,2]
[323136140,1713705038754,-1489.22314453,0.00021815,2]
[323136142,1713705038762,-2126.51224034,0.00021815,2]
[323136144,1713705038771,-2585.8857477,0.00021815,2]
[323136146,1713705038780,-564.09332327,0.00021815,2]
[323136148,1713705038790,-1201.28235502,0.00021815,2]
[323136150,1713705038800,-361.75151942,0.00021815,2]
[323136152,1713705038809,-5797.00010816,0.00021815,2]
[323136154,1713705038818,-318.27839548,0.00021815,2]
[323136156,1713705038827,-155.0309133,0.00021815,2]
[323136158,1713705038835,-500.15168032,0.00021815,2]
[323136159,1713705038846,-155.01863932,0.00021815,2]
[323136161,1713705038855,-2311.45498559,0.00021815,2]
[323136163,1713705038864,-196.01964895,0.00021815,2]
[323136166,1713705038874,-1000.0,0.00021815,2]
[323136168,1713705038885,-691.449615,0.00021815,2]
[323136170,1713705038894,-691.449615,0.00021815,2]
[323136172,1713705038903,-151.0,0.00021815,2]
[323136174,1713705038912,-151.0,0.00021815,2]
[323136176,1713705038922,-4495.86727839,0.00021817,2]
[323136178,1713705038931,-1000.0,0.000219,2]
[323136180,1713705038940,-8934.76792869,0.00021909,2]
[323136182,1713705038950,-207.7309784,0.00021914,2]
[323136184,1713705038959,-1178.79352727,0.00021914,2]
[323137919,1713705648146,244.231209,0.00019813,2]
[323137920,1713705753629,20036.2877813,0.00019813,2]
[323138010,1713706238552,-154.87609912,0.00020598,2]
[323138012,1713706238561,-361.87683553,0.00020599,2]
[323138013,1713706238570,-469.43131527,0.00020599,2]
[323138014,1713706238579,-300.0,0.0002081,2]
[323138016,1713706238590,-300.0,0.0002081,2]
[323138017,1713706238600,-184.26950846,0.0002081,2]
[323138018,1713706238609,-155.04002095,0.00020811,2]
[323138020,1713706238618,-31285.28113,0.00020811,2]
[323138022,1713706238627,-68557.01001987,0.00020812,2]
[323138024,1713706238637,-619.08041203,0.00020813,2]
[323138026,1713706238646,-918.14765376,0.00020889,2]
[323138027,1713706238655,-7922.27811258,0.00021,2]
[323138028,1713706238664,-500.0,0.00021368,2]
[323138030,1713706238675,-500.0,0.00021368,2]
[323138032,1713706238683,-311.68160429,0.00021368,2]
[323138033,1713706238693,-209.13246554,0.00021368,2]
[323138035,1713706238702,-4000.0,0.00021369,2]
[323138036,1713706238712,-4000.0,0.00021369,2]
[323138037,1713706238721,-4000.0,0.00021369,2]
[323138038,1713706238730,-4000.0,0.00021369,2]
[323138039,1713706238739,-4000.0,0.00021369,2]
[323138040,1713706238748,-4000.0,0.00021369,2]
[323138041,1713706238757,-1969.18914495,0.00021369,2]
[323138042,1713706238766,-154.8915759,0.00021791,2]
[323138043,1713706238775,-304.93752392,0.00021813,2]
[323138044,1713706238785,-470.77885512,0.00021813,2]
[323138045,1713706238794,-743.6869419,0.00021814,2]
[323138046,1713706238803,-15951.28633258,0.00021814,2]
[323138047,1713706238813,-1674.52743334,0.00021815,2]
[323138048,1713706238825,-318.27839548,0.00021815,2]
[323138049,1713706238834,-500.15168032,0.00021815,2]
[323138050,1713706238844,-1201.28235502,0.00021815,2]
[323138051,1713706238853,-564.09332327,0.00021815,2]
[323138052,1713706238863,-1089.6608071,0.00021815,2]
[323138053,1713706238872,-300.89684472,0.00021815,2]
[323138054,1713706238881,-2585.8857477,0.00021815,2]
[323138055,1713706238891,-2126.51224034,0.00021815,2]
[323138056,1713706238901,-1489.22314453,0.00021815,2]
[323138057,1713706238911,-329.39846217,0.00021815,2]
[323138058,1713706238920,-2693.77294295,0.00021815,2]
[323138921,1713706258386,154.87609912,0.00019633,2]
[323138922,1713706273925,180.25566942,0.00019813,2]
[323138923,1713706276502,154.87609912,0.00019631,2]
[323138924,1713706285828,180.25566942,0.00019813,2]
[323138925,1713706306045,250.69504279,0.00019813,2]
[323138928,1713706482458,151.0,0.000198,2]
[323138929,1713706485360,2000.0,0.0002,2]
[323138937,1713706724246,24900.0,0.00020071,2]
[323138939,1713706797034,250.0,0.00020061,2]
[323138940,1713706946170,-800.51327954,0.00031817,120]
[323138941,1713706946193,-1000.0,0.00031817,30]
[323138942,1713706946216,-1000.0,0.00031817,30]
[323138943,1713706946240,-501.099999,0.00031817,30]
[323138944,1713706946263,-1000.0,0.00031817,60]
[323138945,1713706946289,-1000.0,0.00031817,60]
[323138946,1713706946313,-501.099999,0.00031817,60]
[323138947,1713706946336,-1000.0,0.00031817,90]
[323138948,1713706946360,-1000.0,0.00031817,90]
[323138949,1713706946382,-501.099999,0.00031817,90]
[323138950,1713706946405,-1000.0,0.00031817,120]
[323138951,1713706946430,-1000.0,0.00031817,120]
[323138952,1713706946454,-501.099999,0.00031817,120]
[323138953,1713706946477,-504.26329359,0.00031817,30]
[323138954,1713706946501,-150.05562809,0.00031817,30]
[323138955,1713706946524,-3834.30900752,0.00031817,30]
[323138956,1713706946548,-271175.77648946,0.00031817,60]
[323138957,1713706946571,-204.33976796,0.00031817,120]
[323138958,1713706946594,-186.24567553,0.00031817,120]
[323138959,1713706946617,-311.85022326,0.00031817,120]
[323138960,1713706946640,-183.22004069,0.00031817,120]
[323138961,1713706946667,-374.62924315,0.00031817,120]
[323138962,1713706946690,-162.08981121,0.00031817,120]
[323138963,1713706946713,-388.66028832,0.00031817,30]
[323138964,1713706946737,-274.22820429,0.00031817,30]
[323138965,1713706946760,-152.8269291,0.00031817,30]
[323138966,1713706946783,-202.28618171,0.00031817,30]
[323138967,1713706946806,-1000.0,0.00031817,60]
[323138968,1713706953331,-367.89894081,0.0003,30]
[323138969,1713706953363,-1000.0,0.0003,30]
[323138970,1713706953392,-200.13548765,0.0003,30]
[323138971,1713706953426,-117571.4842,0.00030177,30]
[323138972,1713706953457,-1206.79320679,0.00030326,30]
[323138973,1713706953493,-200.0,0.00031167,120]
[323138974,1713706953526,-255.70459725,0.00032,120]
[323138975,1713706953556,-1180.16,0.00032,120]
[323138976,1713706953585,-200.0,0.00032,30]
[323138977,1713706953620,-200.0,0.00032962,120]
[323138978,1713706953650,-1013.13831894,0.00033,30]
[323138979,1713706953676,-200.0,0.00033667,120]
[323138980,1713706953700,-706.26818462,0.00034,60]
[323138981,1713706953919,-228873.84648976,0.00035,30]
[323138982,1713706953960,-1000.0,0.00035,35]
[323138983,1713706953986,-186.27774533,0.00035,30]
[323138984,1713706954009,-3948.39720416,0.00035,120]
[323138985,1713706954033,-1876.546054,0.00035616,120]
[323138986,1713706954060,-200.0,0.0003597,120]
[323138987,1713706954085,-200.0,0.00036659,120]
[323138988,1713706954111,-2413.58641359,0.00036733,120]
[323138989,1713706954137,-200.0,0.00037208,120]
[323138990,1713706954161,-200.0,0.00037208,120]
[323138991,1713706954188,-2905.25604,0.000375,32]
[323138992,1713706954213,-1000.0,0.0004,40]
[323138993,1713706954236,-209.95718026,0.0004,120]
[323138994,1713706954260,-2068.0,0.0004,120]
[323138995,1713706954287,-179.91107673,0.00040118,30]
[323138996,1713706954312,-179.91107673,0.00040266,30]
[323138997,1713706954335,-179.91107673,0.00040694,30]
[323138998,1713706954359,-158.35656938,0.00040819,30]
[323138999,1713706954383,-200.0,0.00040962,120]
[323139000,1713706954407,-156.01210324,0.00041,120]
[323139001,1713706954432,-5225.62,0.00041095,120]
[323139002,1713706954455,-5225.62,0.00041095,120]
[323139003,1713706954479,-5225.62,0.00041095,120]
[323139004,1713706954502,-5225.62,0.00041095,120]
[323139005,1713706954525,-5225.62,0.00041095,120]
[323139006,1713706954548,-3234.34803403,0.00041095,120]
[323139007,1713706963279,-254.86524485,0.00040248,30]
[323139008,1713706963303,-2409.42539253,0.00040415,30]
[323139009,1713706963325,-2409.42539253,0.0004044,30]
[323139010,1713706963348,-2409.42539253,0.00040834,30]
[323139011,1713706963371,-254.86524485,0.00041084,30]
[323139012,1713706963398,-1991.27196597,0.00041095,120]
[323139013,1713706963420,-5225.62,0.00041095,120]
[323139014,1713706963443,-5225.62,0.00041095,120]
[323139015,1713706963466,-5225.62,0.00041095,120]
[323139016,1713706963489,-5225.62,0.00041095,120]
[323139017,1713706963513,-5225.62,0.00041095,120]
[323139018,1713706963536,-5225.62,0.00041095,120]
[323139019,1713706963559,-5225.62,0.00041095,120]
[323139020,1713706963581,-5225.62,0.00041095,120]
[323139021,1713706963605,-5225.62,0.00041095,120]
[323139022,1713706963628,-5225.62,0.00041095,120]
[323139023,1713706963651,-5225.62,0.00041095,120]
[323139024,1713706963674,-5225.62,0.00041095,120]
[323139025,1713706963698,-5225.62,0.00041095,120]
[323139026,1713706963720,-5225.62,0.00041095,120]
[323139027,1713706963743,-5225.62,0.00041095,120]
[323139028,1713706963766,-5225.62,0.00041095,120]
[323139029,1713706963790,-5225.62,0.00041095,120]
[323139030,1713706963813,-5225.7661076,0.00041095,120]
[323139031,1713706963837,-200.0,0.00041463,120]
[323139032,1713706963863,-1876.546054,0.00041553,120]
[323139033,1713706963887,-254.86524485,0.00041918,30]
[323139034,1713706963911,-444.01471528,0.00042,120]
[323139035,1713706963936,-254.86524485,0.0004221,30]
[323139036,1713706963962,-254.86524485,0.00042377,30]
[323139037,1713706963986,-519.770808,0.000424,120]
[323139038,1713706964008,-2409.42539253,0.000425,30]
[323139039,1713706964031,-179.91107673,0.00042614,30]
[323139040,1713706964058,-254.86524485,0.00042924,30]
[323139041,1713706964081,-2409.42539253,0.00043049,30]
[323139042,1713706964105,-200.0,0.00043458,120]
[323139043,1713706964133,-179.91107673,0.00043458,30]
[323139044,1713706964159,-179.91107673,0.00043958,30]
[323139045,1713706964184,-254.86524485,0.00044361,30]
[323139046,1713706964209,-200.0,0.00044365,120]
[323139047,1713706964232,-179.91107673,0.00044726,30]
[323139048,1713706964256,-2409.42539253,0.00044835,30]
[323139049,1713706964279,-219.22904821,0.00044999,120]
[323139050,1713706964302,-8740.85604886,0.00045,120]
[323139051,1713706964324,-1000.0,0.00045,45]
[323139052,1713706964348,-200.0,0.00045608,120]
[323139053,1713706964373,-2409.42539253,0.00045635,30]
[323139054,1713706964395,-254.86524485,0.00045826,30]
[323139055,1713706964418,-179.91107673,0.00045932,30]
[323139056,1713706964440,-150.94934609,0.00046659,30]
[323139057,1713706964601,-2409.42539253,0.00046775,30]
[323139058,1713706964625,-179.91107673,0.0004683,30]
[323139059,1713706964648,-254.86524485,0.00046857,30]
[323139060,1713706964671,-200.0,0.00046917,120]
[323139061,1713706964695,-200.0,0.00046952,120]
[323139062,1713706964717,-40956.8795377,0.00047,30]
[323139063,1713706964740,-170.0,0.00047,90]
[323139064,1713706964762,-648.48785202,0.00047056,120]
[323139065,1713706964784,-2409.42539253,0.00047075,30]
[323139066,1713706964806,-2409.42539253,0.00047111,30]
[323139067,1713706964829,-2409.42539253,0.00047258,30]
[323139068,1713706964853,-1876.546054,0.00047489,120]
[323139069,1713706964877,-418.18083097,0.000475,120]
[323139070,1713706964900,-179.91107673,0.00047788,30]
[323139071,1713706964922,-40018.45838259,0.000478,30]
[323139072,1713706964945,-2409.42539253,0.00047879,30]
[323139073,1713706964967,-2000.0,0.00048,120]
[323139074,1713706964991,-254.86524485,0.00048038,30]
[323139075,1713706965013,-179.91107673,0.0004804,30]
[323139076,1713706965036,-200.0,0.00048137,120]
[323139077,1713706965063,-254.86524485,0.00048214,30]
[323139078,1713706965087,-179.91107673,0.00048285,30]
[323139079,1713706965110,-179.91107673,0.00048594,30]
[323139080,1713706965135,-200.0,0.00048663,120]
[323139081,1713706965157,-2409.42539253,0.00048749,30]
[323139082,1713706965179,-254.86524485,0.0004883,30]
[323139083,1713706965203,-170.0,0.00048904,90]
[323139084,1713706965226,-180.99188609,0.00048965,30]
[323139085,1713706965248,-256.95583928,0.0004898,30]
[323139086,1713706965270,-157.76645883,0.0004899,68]
[323139087,1713706965292,-5784.39473182,0.00049,120]
[323139088,1713706965314,-1092.1114991,0.00049,120]
[323139089,1713706965338,-179.911077,0.00049177,30]
[323139090,1713706965364,-2409.42539281,0.00049218,30]
[323139091,1713706965586,254.86524485,0.00049162,30]
[323139092,1713706965653,254.86524485,0.00049305,30]
[323139093,1713706966776,344.76608919,0.00041555,30]
[323139094,1713706967292,344.76608919,0.00041923,30]
[323139095,1713706967787,344.76608919,0.00042058,30]
[323139096,1713706968332,344.76608919,0.00044957,30]
[323139097,1713706968862,344.76608919,0.00045083,30]
[323139098,1713706969404,344.76608919,0.00045343,30]
[323139099,1713706969932,344.76608919,0.00046261,30]
[323139100,1713706970476,344.76608919,0.00047237,30]
[323139101,1713706971014,344.76608919,0.0004848,30]
[323139102,1713706971753,344.76608919,0.00048974,30]
[323139103,1713706974661,197.59059237,0.000412,30]
[323139104,1713706975160,197.59059237,0.00041643,30]
[323139105,1713706975817,197.59059237,0.00042675,30]
[323139106,1713706975936,158.35656937,0.00049175,30]
[323139107,1713706976190,197.59059237,0.00043836,30]
[323139108,1713706976857,197.59059237,0.00044493,30]
[323139109,1713706977401,197.59059237,0.00044603,30]
[323139110,1713706977855,582.55366881,0.00040133,30]
[323139111,1713706977949,197.59059237,0.0004488,30]
[323139112,1713706978376,582.55366881,0.00040841,30]
[323139113,1713706978443,197.59059237,0.00046028,30]
[323139114,1713706978873,582.55366881,0.00041594,30]
[323139115,1713706978975,197.59059237,0.00046736,30]
[323139116,1713706979122,154.92253873,0.00035,30]
[323139117,1713706979532,197.59059237,0.0004695,30]
[323139118,1713706979560,582.55366881,0.00041608,30]
[323139119,1713706980041,197.59059237,0.00048434,30]
[323139120,1713706980123,582.55366881,0.00042819,30]
[323139121,1713707211895,18178.64923743,0.00019627,2]
[323139122,1713707211925,6721.35076257,0.00019627,2]
[323139129,1713707290316,385.87436612,0.00019627,2]
[323139130,1713707291558,692.47153713,0.00019627,2]
[323139131,1713707291622,154.86062544,0.00019627,2]
[323139132,1713707293548,16084.6337382,0.00019627,2]
[323139133,1713707294441,180.25566942,0.00019627,2]
[323139134,1713707305554,692.47153713,0.00019627,2]
[323139135,1713707307427,16084.6337382,0.00019627,2]